fUST/lending_fUST_20250321
["ID","MTS","AMOUNT","RATE_DAILY","PERIOD"]
[356490022,1742527832474,-206.3125409,0.00022933,2]
[356490023,1742527832484,-300.0,0.00023475,2]
[356490024,1742527832493,-15153.2189086,0.00023476,2]
[356490025,1742527832502,-1045.120047,0.00023549,2]
[356490026,1742527832511,-307.26092579,0.00023676,2]
[356490027,1742527832524,-252.03544217,0.0002375,5]
[356490028,1742527832534,-500.0,0.000238,2]
[356490029,1742527832543,-501.44587021,0.000238,2]
[356490030,1742527832552,-500.0,0.000238,2]
[356490031,1742527832562,-500.0,0.000238,2]
[356490032,1742527832572,-500.0,0.000238,2]
[356490033,1742527832581,-360.71832798,0.000239,3]
[356490034,1742527832590,-360.71832787,0.00024314,3]
[356490035,1742527832600,-500.0,0.000247,2]
[356490036,1742527832611,-500.0,0.000247,2]
[356490037,1742527832621,-500.0,0.000247,2]
[356490038,1742527832630,-224.68106829,0.000247,2]
[356490039,1742527832640,-500.0,0.000247,2]
[356490040,1742527832650,-500.0,0.000247,2]
[356490041,1742527832660,-500.0,0.000247,2]
[356490042,1742527832669,-500.0,0.000247,2]
[356490043,1742527832679,-500.0,0.000247,2]
[356490044,1742527832689,-500.0,0.000247,2]
[356490045,1742527832698,-360.71832787,0.00024728,3]
[356490046,1742527832708,-1237.3795429,0.00024956,2]
[356490047,1742527832717,-4107.45552748,0.00025,120]
[356490048,1742527832726,-151.0,0.00025,7]
[356490049,1742527832736,-168.61154211,0.00025039,2]
[356490051,1742527833017,-16603.03558,0.00025039,2]
[356490052,1742527833029,-329.80498334,0.00025039,2]
[356490058,1742527838174,-500.0,0.00023775,2]
[356490059,1742527838186,-3020.78887353,0.00023775,2]
[356490060,1742527838196,-3020.78887353,0.00023775,2]
[356490061,1742527838206,-640.7089919,0.00023775,2]
[356490062,1742527838216,-3020.78887353,0.00023775,2]
[356490063,1742527838226,-3020.78887353,0.00023775,2]
[356490064,1742527838235,-3020.78887353,0.00023775,2]
[356490065,1742527838245,-3020.78887353,0.00023775,2]
[356490066,1742527838254,-3020.78887353,0.00023775,2]
[356490067,1742527838264,-3020.78887353,0.00023775,2]
[356490068,1742527838273,-3020.78887353,0.00023775,2]
[356490069,1742527838283,-3020.78887353,0.00023775,2]
[356490070,1742527838293,-3020.78887353,0.00023775,2]
[356490072,1742527838303,-3020.78887353,0.00023775,2]
[356490074,1742527838312,-3020.78887353,0.00023775,2]
[356490077,1742527838322,-3020.78887353,0.00023775,2]
[356490080,1742527838332,-3020.78887353,0.00023775,2]
[356490082,1742527838342,-3020.78887353,0.00023775,2]
[356490084,1742527838351,-3020.78887353,0.00023775,2]
[356490086,1742527838361,-3020.78887353,0.00023775,2]
[356490088,1742527838371,-3020.78887353,0.00023775,2]
[356490090,1742527838380,-3020.78887353,0.00023775,2]
[356490092,1742527838390,-3020.78887353,0.00023775,2]
[356490094,1742527838401,-3020.78887353,0.00023775,2]
[356490096,1742527838412,-3020.78887353,0.00023775,2]
[356490097,1742527838421,-3020.78887353,0.00023775,2]
[356490098,1742527838430,-3020.78887353,0.00023775,2]
[356490099,1742527838440,-979.45849375,0.00023775,2]
[356490100,1742527838457,-643.26822603,0.00023775,2]
[356490129,1742527843430,-1398.06215375,0.00023775,2]
[356490130,1742527843440,-3020.78887353,0.00023775,2]
[356490131,1742527843450,-3020.78887353,0.00023775,2]
[356490132,1742527843460,-3020.78887353,0.00023775,2]
[356490133,1742527843469,-3020.78887353,0.00023775,2]
[356490134,1742527843478,-2006.50737317,0.00023775,2]
[356490144,1742527892087,160.0,0.0002,3]
[356490161,1742528594366,172.864914,0.00010959,2]
[356490795,1742529038428,-472.2532118,0.000229,2]
[356490796,1742529038438,-300.0,0.00022938,2]
[356490797,1742529038447,-14374.4085294,0.00022939,2]
[356490798,1742529038456,-300.0,0.00023,120]
[356490799,1742529038465,-173.785802,0.00023466,2]
[356490800,1742529038478,-268.85331004,0.00023667,2]
[356490801,1742529038487,-4625.37585201,0.00023673,2]
[356490802,1742529038497,-204.67670753,0.00023765,2]
[356490803,1742529038507,-500.0,0.00023765,2]
[356490804,1742529038516,-606.3225282,0.00023765,2]
[356490805,1742529038525,-381.01891894,0.00023765,2]
[356490806,1742529038534,-2644.42239718,0.00023765,2]
[356490807,1742529038563,-2644.42239718,0.00023765,2]
[356490808,1742529038573,-2644.42239718,0.00023765,2]
[356490809,1742529038582,-2644.42239718,0.00023765,2]
[356490810,1742529038592,-2644.42239718,0.00023765,2]
[356490811,1742529038602,-2644.42239718,0.00023765,2]
[356490813,1742529038611,-2644.42239718,0.00023765,2]
[356490815,1742529038621,-2644.42239718,0.00023765,2]
[356490816,1742529038630,-2644.42239718,0.00023765,2]
[356490818,1742529038639,-2644.42239718,0.00023765,2]
[356490820,1742529038648,-2644.42239718,0.00023765,2]
[356490822,1742529038658,-2644.42239718,0.00023765,2]
[356490823,1742529038667,-2644.42239718,0.00023765,2]
[356490825,1742529038676,-2644.42239718,0.00023765,2]
[356490826,1742529038685,-2644.42239718,0.00023765,2]
[356490827,1742529038695,-2644.42239718,0.00023765,2]
[356490828,1742529038705,-2644.42239718,0.00023765,2]
[356490829,1742529038715,-2644.42239718,0.00023765,2]
[356490830,1742529038724,-2644.42239718,0.00023765,2]
[356490831,1742529038733,-2644.42239718,0.00023765,2]
[356490832,1742529038743,-2644.42239718,0.00023765,2]
[356490833,1742529038752,-2644.42239718,0.00023765,2]
[356490834,1742529038762,-2644.42239718,0.00023765,2]
[356490835,1742529038772,-1419.31228206,0.00023765,2]
[356490836,1742529038784,-1225.11011512,0.00023765,2]
[356490837,1742529038793,-2644.42239718,0.00023765,2]
[356490838,1742529038803,-2644.42239718,0.00023765,2]
[356490839,1742529038812,-2644.42239718,0.00023765,2]
[356490840,1742529038821,-2644.42239718,0.00023765,2]
[356490841,1742529038831,-2644.42239718,0.00023765,2]
[356490842,1742529038840,-2644.42239718,0.00023765,2]
[356490843,1742529038849,-2644.42239718,0.00023765,2]
[356490844,1742529038858,-2644.42239718,0.00023765,2]
[356490845,1742529038868,-2644.42239718,0.00023765,2]
[356490846,1742529038877,-2644.42239718,0.00023765,2]
[356490847,1742529038886,-2644.42239718,0.00023765,2]
[356490848,1742529038895,-2644.42239718,0.00023765,2]
[356490849,1742529038909,-2644.42239718,0.00023765,2]
[356490850,1742529038918,-2644.42239718,0.00023765,2]
[356490851,1742529038927,-2644.42239718,0.00023765,2]
[356490852,1742529038936,-2644.42239718,0.00023765,2]
[356490853,1742529038946,-2644.42239718,0.00023765,2]
[356490854,1742529038956,-2644.42239718,0.00023765,2]
[356490855,1742529038965,-2644.42239718,0.00023765,2]
[356490856,1742529038975,-2644.42239718,0.00023765,2]
[356490857,1742529038986,-2644.42239718,0.00023765,2]
[356490858,1742529038996,-2644.42239717,0.00023765,2]
[356490859,1742529039006,-2644.42239718,0.00023765,2]
[356490860,1742529039015,-2644.42239718,0.00023765,2]
[356490861,1742529039025,-2644.42239718,0.00023765,2]
[356490862,1742529039034,-2644.42239718,0.00023765,2]
[356490863,1742529039044,-2644.42239718,0.00023765,2]
[356490864,1742529039054,-2644.42239718,0.00023765,2]
[356490865,1742529039063,-2644.42239718,0.00023765,2]
[356490866,1742529039073,-151.0,0.00023772,7]
[356490867,1742529039081,-500.0,0.000238,2]
[356490868,1742529039091,-657.08735108,0.000239,3]
[356490869,1742529039100,-657.08735095,0.00024314,3]
[356490870,1742529039109,-200.0,0.00024658,15]
[356490871,1742529039118,-500.0,0.000247,2]
[356490872,1742529039129,-500.0,0.000247,2]
[356490873,1742529039138,-500.0,0.000247,2]
[356490874,1742529039147,-500.0,0.000247,2]
[356490875,1742529039156,-657.08735095,0.00024728,3]
[356490876,1742529039165,-420.0,0.00024902,2]
[356490877,1742529039175,-151.0,0.00024941,7]
[356490878,1742529039184,-151.0,0.00024941,7]
[356490879,1742529039193,-24900.0,0.00024941,2]
[356490880,1742529039202,-500.0,0.00025,2]
[356490881,1742529039212,-501.60673222,0.00025,2]
[356490882,1742529039221,-500.0,0.00025,2]
[356490883,1742529039231,-500.0,0.00025,2]
[356490884,1742529039240,-500.0,0.00025,2]
[356490885,1742529039249,-500.0,0.00025,2]
[356490886,1742529039259,-500.0,0.00025,2]
[356490887,1742529039268,-500.0,0.00025,2]
[356490888,1742529039281,-500.0,0.00025,2]
[356490889,1742529039290,-500.0,0.00025,2]
[356490891,1742529039299,-500.0,0.00025,2]
[356490893,1742529039308,-500.0,0.00025,2]
[356490895,1742529039317,-500.0,0.00025,2]
[356490897,1742529039327,-500.0,0.00025,2]
[356490899,1742529039337,-500.0,0.00025,2]
[356490901,1742529039346,-500.0,0.00025,2]
[356490903,1742529039355,-522.560024,0.00025039,2]
[356490905,1742529039364,-657.08735095,0.00025141,4]
[356490907,1742529039373,-268.85331003,0.00025281,2]
[356490908,1742529039383,-657.08735095,0.00025555,4]
[356490910,1742529039392,-657.08735095,0.00025969,4]
[356490911,1742529039402,-657.08735095,0.00026383,4]
[356490912,1742529039411,-657.08735095,0.00026797,4]
[356490913,1742529039421,-268.85331003,0.00026896,2]
[356490914,1742529039430,-587.0,0.00027034,2]
[356490915,1742529039439,-657.08735095,0.0002721,4]
[356490916,1742529039448,-500.0,0.00027397,2]
[356490917,1742529039458,-500.0,0.00027397,2]
[356490918,1742529039467,-500.0,0.00027397,2]
[356490919,1742529039476,-500.0,0.00027397,2]
[356490920,1742529039485,-500.0,0.00027397,2]
[356490921,1742529039494,-500.0,0.00027397,2]
[356490922,1742529039503,-500.0,0.00027397,2]
[356490923,1742529039513,-500.0,0.00027397,2]
[356490924,1742529039522,-500.0,0.00027397,2]
[356490925,1742529039531,-500.0,0.00027397,2]
[356490926,1742529039541,-500.0,0.00027397,2]
[356490927,1742529039550,-500.0,0.00027397,2]
[356490928,1742529039559,-500.0,0.00027397,2]
[356490929,1742529039569,-500.0,0.00027397,2]
[356490930,1742529039578,-500.0,0.00027397,2]
[356490931,1742529039588,-500.0,0.00027397,2]
[356490932,1742529039598,-340.92518311,0.00027397,2]
[356490933,1742529039608,-500.0,0.00027397,2]
[356490934,1742529039618,-500.0,0.00027397,2]
[356490935,1742529039627,-500.0,0.00027397,2]
[356490936,1742529039637,-500.0,0.00027397,2]
[356490937,1742529039647,-500.0,0.00027397,2]
[356490938,1742529039656,-500.0,0.00027397,2]
[356490939,1742529039666,-500.0,0.00027397,2]
[356490940,1742529039676,-500.0,0.00027397,2]
[356490941,1742529039686,-500.0,0.00027397,2]
[356490942,1742529039695,-500.0,0.00027397,2]
[356490943,1742529039704,-500.0,0.00027397,2]
[356490944,1742529039714,-500.0,0.00027397,2]
[356490945,1742529039723,-500.0,0.00027397,2]
[356490946,1742529039733,-500.0,0.00027397,2]
[356490947,1742529039742,-500.0,0.00027397,2]
[356490948,1742529039751,-500.0,0.00027397,2]
[356490949,1742529039760,-500.0,0.00027397,2]
[356490950,1742529039770,-500.0,0.00027397,2]
[356490951,1742529039780,-500.0,0.00027397,2]
[356490952,1742529039789,-500.0,0.00027397,2]
[356490953,1742529039799,-500.0,0.00027397,2]
[356490954,1742529039808,-500.0,0.00027397,2]
[356490955,1742529039817,-500.0,0.00027397,2]
[356490956,1742529039826,-500.0,0.00027397,2]
[356490957,1742529039836,-657.08735095,0.00027624,4]
[356490958,1742529039845,-657.08735095,0.00028038,4]
[356490959,1742529039855,-657.08735095,0.00028452,5]
[356490960,1742529039864,-268.85331003,0.0002851,2]
[356490961,1742529039873,-657.08735095,0.00028866,5]
[356490962,1742529039882,-657.08735095,0.00029279,5]
[356490963,1742529039891,-160.0,0.00029299,2]
[356490964,1742529039903,-418.02116171,0.00029299,2]
[356490965,1742529039912,-834.1406796,0.00029299,2]
[356490966,1742529039921,-12458.93820146,0.00029299,2]
[356490969,1742529039931,-151.0,0.00029299,7]
[356490970,1742529039941,-823.0,0.00029349,2]
[356490971,1742529039951,-657.08735095,0.00029693,5]
[356490972,1742529039960,-500.46895917,0.0003,2]
[356490973,1742529039969,-7263.0,0.0003,2]
[356490974,1742529039979,-200.0,0.0003,14]
[356490975,1742529039989,-657.08735095,0.00030107,5]
[356490976,1742529039999,-268.85331003,0.00030125,2]
[356490977,1742529040008,-387.94553793,0.00030179,5]
[356490989,1742529040706,-612.05446207,0.00030179,5]
[356490990,1742529040716,-1000.0,0.00030179,5]
[356490991,1742529040725,-1000.0,0.00030479,5]
[356490992,1742529040734,-1000.0,0.00030479,5]
[356490993,1742529040743,-1000.0,0.00030479,5]
[356490994,1742529040752,-372.29726591,0.00030479,5]
[356490995,1742529040762,-1000.0,0.00030479,5]
[356490996,1742529040773,-1000.0,0.00030479,5]
[356490997,1742529040783,-1000.0,0.00030479,5]
[356490998,1742529040792,-942.28489387,0.00030479,5]
[356490999,1742529040802,-1000.0,0.00030479,5]
[356491000,1742529040812,-1000.0,0.00030479,5]
[356491001,1742529040821,-1000.0,0.00030479,5]
[356491002,1742529040831,-1004.66969983,0.00030479,5]
[356491003,1742529040840,-657.08735095,0.00030521,5]
[356491004,1742529040850,-150.0,0.00030865,2]
[356491005,1742529040859,-541.0,0.00030865,2]
[356491006,1742529040868,-2265.0,0.00030865,2]
[356491007,1742529040877,-657.08735095,0.00030934,5]
[356491008,1742529040887,-1526.22545496,0.00031,2]
[356491009,1742529040898,-657.08735095,0.00031348,6]
[356491010,1742529040909,-1015.0,0.000315,21]
[356491011,1742529040918,-268.85331003,0.00031739,2]
[356491012,1742529040928,-657.08735095,0.00031762,6]
[356491013,1742529040937,-194.0,0.00031862,2]
[356491014,1742529040951,-749.613963,0.00031889,4]
[356491015,1742529040960,-181.361,0.00031924,30]
[356491016,1742529040970,-657.08735095,0.00032176,6]
[356491017,1742529040980,-987.2713234,0.00032451,120]
[356491018,1742529040990,-657.08735095,0.0003259,6]
[356491019,1742529040999,-163.85,0.000327,31]
[356491020,1742529041009,-300.0,0.000328,16]
[356491021,1742529041018,-500.0,0.00032873,5]
[356491022,1742529041028,-500.0,0.00032873,5]
[356491023,1742529041038,-500.0,0.00032873,5]
[356491024,1742529041048,-503.95907729,0.00032873,5]
[356491025,1742529041057,-500.0,0.00032873,5]
[356491026,1742529041067,-153.69843307,0.00032873,5]
[356491027,1742529041077,-501.52380989,0.00032873,5]
[356491028,1742529041086,-502.09196344,0.00032873,5]
[356491029,1742529041096,-500.0,0.00032873,5]
[356491030,1742529041105,-500.0,0.00032873,5]
[356491031,1742529041115,-500.0,0.00032873,5]
[356491032,1742529041124,-500.0,0.00032873,5]
[356491033,1742529041134,-500.0,0.00032873,5]
[356491034,1742529041143,-500.2188855,0.00032873,5]
[356491035,1742529041152,-500.274287,0.00032873,5]
[356491036,1742529041162,-500.0,0.00032873,5]
[356491037,1742529041171,-500.0,0.00032873,5]
[356491038,1742529041180,-500.21365656,0.00032873,5]
[356491039,1742529041190,-544.09893092,0.00032873,5]
[356491040,1742529041199,-500.0,0.00032873,5]
[356491041,1742529041209,-500.3111164,0.00032873,5]
[356491042,1742529041218,-501.48095932,0.00032873,5]
[356491043,1742529041228,-500.0,0.00032873,5]
[356491044,1742529041237,-500.0,0.00032873,5]
[356491045,1742529041247,-500.58261223,0.00032873,5]
[356491046,1742529041256,-500.0,0.00032873,5]
[356491047,1742529041265,-500.81782004,0.00032873,5]
[356491048,1742529041274,-500.0,0.00032873,5]
[356491049,1742529041283,-500.0,0.00032873,5]
[356491050,1742529041293,-600.20575306,0.00032873,5]
[356491051,1742529041303,-154.325958,0.00032876,21]
[356491052,1742529041312,-500.0,0.00032876,21]
[356491053,1742529041322,-627.46812764,0.00032876,21]
[356491054,1742529041331,-500.0,0.00032876,21]
[356491055,1742529041542,-500.0,0.00032876,21]
[356491056,1742529041555,-516.82712374,0.00032876,21]
[356491057,1742529041565,-500.0,0.00032876,21]
[356491058,1742529041575,-500.0,0.00032876,21]
[356491059,1742529041586,-500.0,0.00032876,21]
[356491060,1742529041595,-500.0,0.00032876,21]
[356491061,1742529041604,-500.0,0.00032876,21]
[356491062,1742529041614,-500.0,0.00032876,21]
[356491063,1742529041623,-500.0,0.00032876,21]
[356491064,1742529041632,-517.68009338,0.00032876,21]
[356491065,1742529041641,-504.35968447,0.00032876,21]
[356491066,1742529041650,-611.88,0.00032876,21]
[356491067,1742529041659,-535.94,0.00032876,21]
[356491068,1742529041669,-896.87,0.00032876,21]
[356491069,1742529041678,-504.23433513,0.00032876,21]
[356491070,1742529041687,-500.0,0.00032876,21]
[356491071,1742529041696,-500.0,0.00032876,21]
[356491072,1742529041705,-500.0,0.00032876,21]
[356491073,1742529041716,-503.56306898,0.00032876,21]
[356491074,1742529041725,-500.0,0.00032876,21]
[356491075,1742529041735,-500.0,0.00032876,21]
[356491076,1742529041744,-500.0,0.00032876,21]
[356491077,1742529041753,-500.0,0.00032876,21]
[356491078,1742529041762,-500.0,0.00032876,21]
[356491079,1742529041772,-500.0,0.00032876,21]
[356491080,1742529041781,-500.0,0.00032876,21]
[356491081,1742529041791,-573.42,0.00032876,21]
[356491082,1742529041800,-500.0,0.00032876,21]
[356491083,1742529041810,-500.0,0.00032876,21]
[356491084,1742529041819,-500.0,0.00032876,21]
[356491085,1742529041829,-501.08495183,0.00032876,5]
[356491086,1742529041838,-500.0,0.00032876,21]
[356491087,1742529041848,-885.43,0.00032876,21]
[356491088,1742529041857,-500.0,0.00032876,21]
[356491089,1742529041865,-500.0,0.00032876,21]
[356491090,1742529041875,-526.10589272,0.00032876,21]
[356491091,1742529041884,-500.0,0.00032876,21]
[356491092,1742529041894,-150.14,0.00032876,7]
[356491093,1742529041907,-505.59,0.00032876,21]
[356491094,1742529041916,-234.68498467,0.00032876,7]
[356491095,1742529041926,-500.0,0.00032876,21]
[356491096,1742529041935,-500.0,0.00032876,21]
[356491097,1742529041946,-1747.25,0.00032876,21]
[356491098,1742529041956,-641.18,0.00032876,21]
[356491099,1742529041965,-500.0,0.00032876,21]
[356491100,1742529041974,-452.43020846,0.00032876,21]
[356491101,1742529041985,-500.0,0.00032876,21]
[356491102,1742529041995,-500.0,0.00032876,21]
[356491103,1742529042005,-500.0,0.00032876,21]
[356491104,1742529042015,-505.15562987,0.00032876,21]
[356491105,1742529042024,-500.0,0.00032876,21]
[356491106,1742529042033,-500.0,0.00032876,21]
[356491107,1742529042043,-500.0,0.00032876,21]
[356491108,1742529042052,-515.82590999,0.00032876,21]
[356491109,1742529042062,-500.0,0.00032876,21]
[356491110,1742529042071,-1083.56,0.00032876,21]
[356491111,1742529042080,-500.0,0.00032876,21]
[356491112,1742529042089,-500.0,0.00032876,21]
[356491113,1742529042098,-500.0,0.00032876,21]
[356491114,1742529042108,-500.0,0.00032876,21]
[356491115,1742529042118,-1112.98,0.00032876,21]
[356491116,1742529042128,-500.0,0.00032876,21]
[356491117,1742529042137,-587.31,0.00032876,21]
[356491118,1742529042146,-500.0,0.00032876,21]
[356491119,1742529042156,-500.0,0.00032876,21]
[356491120,1742529042165,-500.0,0.00032876,21]
[356491121,1742529042175,-500.0,0.00032876,21]
[356491122,1742529042185,-784.4,0.00032876,21]
[356491123,1742529042195,-500.0,0.00032876,21]
[356491124,1742529042205,-500.0,0.00032876,21]
[356491125,1742529042214,-500.0,0.00032876,21]
[356491126,1742529042224,-1471.5,0.00032876,21]
[356491127,1742529042233,-199.8,0.00032876,7]
[356491128,1742529042254,-1131.98,0.00032876,21]
[356491129,1742529042265,-500.0,0.00032876,21]
[356491130,1742529042276,-1041.98,0.00032876,21]
[356491131,1742529042287,-740.35,0.00032876,21]
[356491132,1742529042298,-500.0,0.00032876,21]
[356491133,1742529042308,-500.0,0.00032876,21]
[356491134,1742529042319,-1683.08,0.00032876,21]
[356491135,1742529042329,-500.44449328,0.00032876,2]
[356491136,1742529042340,-528.52,0.00032876,21]
[356491137,1742529042350,-532.13,0.00032876,21]
[356491138,1742529042361,-500.0,0.00032876,21]
[356491139,1742529042371,-1070.02,0.00032876,21]
[356491140,1742529042382,-162.50977259,0.00032876,21]
[356491141,1742529042392,-500.0,0.00032876,21]
[356491142,1742529042402,-500.0,0.00032876,21]
[356491143,1742529042413,-989.57,0.00032876,21]
[356491144,1742529042423,-500.0,0.00032876,21]
[356491145,1742529042433,-340.53828946,0.00032876,21]
[356491146,1742529042444,-646.25,0.00032876,21]
[356491147,1742529042455,-500.0,0.00032876,21]
[356491148,1742529042465,-500.0,0.00032876,21]
[356491149,1742529042475,-563.93,0.00032876,21]
[356491150,1742529042485,-640.41,0.00032876,21]
[356491151,1742529042495,-822.57,0.00032876,21]
[356491152,1742529042506,-500.0,0.00032876,21]
[356491153,1742529042517,-500.0,0.00032876,21]
[356491154,1742529042527,-592.41,0.00032876,120]
[356491155,1742529042537,-600.02,0.00032876,21]
[356491156,1742529042558,-500.0,0.00032876,21]
[356491157,1742529042569,-638.62,0.00032876,21]
[356491158,1742529042579,-500.0,0.00032876,21]
[356491159,1742529042589,-500.0,0.00032876,21]
[356491160,1742529042599,-630.96,0.00032876,2]
[356491161,1742529042610,-500.0,0.00032876,21]
[356491162,1742529042620,-506.26842637,0.00032876,21]
[356491163,1742529042629,-1036.91,0.00032876,21]
[356491164,1742529042639,-500.0,0.00032876,21]
[356491165,1742529042649,-579.07,0.00032876,21]
[356491166,1742529042659,-500.0,0.00032876,21]
[356491167,1742529042669,-500.0,0.00032876,21]
[356491168,1742529042679,-500.0,0.00032876,21]
[356491169,1742529042688,-1580.11,0.00032876,21]
[356491170,1742529042698,-1577.32,0.00032876,21]
[356491171,1742529042708,-500.0,0.00032876,21]
[356491172,1742529042718,-500.0,0.00032876,21]
[356491173,1742529042728,-500.0,0.00032876,21]
[356491174,1742529042738,-1504.86,0.00032876,21]
[356491175,1742529042747,-1205.32,0.00032876,21]
[356491176,1742529042757,-500.0,0.00032876,21]
[356491177,1742529042767,-500.0,0.00032876,21]
[356491178,1742529042776,-965.71,0.00032876,21]
[356491179,1742529042786,-1282.48,0.00032876,21]
[356491180,1742529042797,-772.11,0.00032876,21]
[356491181,1742529042807,-500.0,0.00032876,21]
[356491182,1742529042816,-1043.5,0.00032876,21]
[356491183,1742529042826,-500.0,0.00032876,21]
[356491184,1742529042836,-694.52,0.00032876,21]
[356491185,1742529042845,-972.67,0.00032876,21]
[356491186,1742529042855,-500.0,0.00032876,21]
[356491187,1742529042865,-500.0,0.00032876,21]
[356491188,1742529042875,-965.35,0.00032876,21]
[356491189,1742529042884,-1349.18,0.00032876,21]
[356491190,1742529042894,-500.0,0.00032876,21]
[356491191,1742529042908,-789.0,0.00032876,21]
[356491192,1742529042918,-324.70029663,0.00032876,21]
[356491193,1742529042928,-500.0,0.00032876,21]
[356491195,1742529042938,-500.0,0.00032876,21]
[356491196,1742529042949,-500.0,0.00032876,21]
[356491197,1742529042959,-551.59,0.00032876,21]
[356491198,1742529042970,-500.0,0.00032876,21]
[356491199,1742529042980,-1053.81,0.00032876,21]
[356491200,1742529042991,-500.0,0.00032876,21]
[356491201,1742529043001,-602.66,0.00032876,21]
[356491202,1742529043011,-500.0,0.00032876,21]
[356491203,1742529043021,-500.0,0.00032876,21]
[356491204,1742529043031,-500.0,0.00032876,21]
[356491205,1742529043041,-500.0,0.00032876,21]
[356491206,1742529043051,-500.0,0.00032876,21]
[356491207,1742529043061,-632.84,0.00032876,21]
[356491208,1742529043071,-500.0,0.00032876,21]
[356491209,1742529043082,-500.0,0.00032876,21]
[356491210,1742529043092,-533.86886224,0.00032876,21]
[356491211,1742529043102,-500.0,0.00032876,21]
[356491214,1742529043112,-1492.3,0.00032876,21]
[356491217,1742529043122,-618.94,0.00032876,21]
[356491220,1742529043132,-626.07,0.00032876,21]
[356491222,1742529043143,-500.0,0.00032876,21]
[356491223,1742529043153,-1515.97,0.00032876,21]
[356491224,1742529043163,-911.18,0.00032876,21]
[356491225,1742529043174,-500.0,0.00032876,21]
[356491226,1742529043184,-950.62,0.00032876,21]
[356491227,1742529043194,-500.0,0.00032876,21]
[356491228,1742529043205,-503.48,0.00032876,21]
[356491229,1742529043215,-761.98,0.00032876,21]
[356491230,1742529043225,-510.04096049,0.00032876,21]
[356491231,1742529043235,-500.0,0.00032876,21]
[356491232,1742529043246,-659.53,0.00032876,21]
[356491233,1742529043256,-1394.09,0.00032876,21]
[356491234,1742529043266,-500.0,0.00032876,21]
[356491235,1742529043276,-1235.35,0.00032876,21]
[356491236,1742529043286,-500.0,0.00032876,21]
[356491237,1742529043296,-500.0,0.00032876,21]
[356491238,1742529043306,-500.0,0.00032876,21]
[356491239,1742529043316,-507.48905518,0.00032876,21]
[356491240,1742529043327,-1108.73,0.00032876,21]
[356491241,1742529043336,-694.04,0.00032876,21]
[356491242,1742529043346,-500.0,0.00032876,21]
[356491243,1742529043356,-500.0,0.00032876,21]
[356491244,1742529043366,-946.47,0.00032876,21]
[356491245,1742529043376,-1241.07,0.00032876,21]
[356491246,1742529043386,-617.66,0.00032876,21]
[356491247,1742529043396,-651.43,0.00032876,21]
[356491248,1742529043406,-500.0,0.00032876,21]
[356491249,1742529043416,-500.0,0.00032876,21]
[356491250,1742529043425,-1297.8,0.00032876,21]
[356491251,1742529043435,-1139.83,0.00032876,21]
[356491252,1742529043445,-500.0,0.00032876,21]
[356491253,1742529043454,-500.0,0.00032876,21]
[356491254,1742529043464,-1910.66,0.00032876,21]
[356491255,1742529043474,-500.0,0.00032876,21]
[356491256,1742529043483,-500.0,0.00032876,21]
[356491257,1742529043493,-500.0,0.00032876,21]
[356491258,1742529043503,-595.41,0.00032876,21]
[356491259,1742529043512,-907.4,0.00032876,21]
[356491260,1742529043522,-500.0,0.00032876,21]
[356491261,1742529043531,-500.0,0.00032876,21]
[356491262,1742529043541,-500.0,0.00032876,21]
[356491263,1742529043550,-500.0,0.00032876,21]
[356491264,1742529043560,-626.81,0.00032876,21]